Cogmind - Beta 13 X1 @@@ ROGUE MODE // 2023.08.01 @ 16:06:45 Player: Schmee Result: Destroyed by MQ-MGA(R) with Subdweller Machine Gun Performance ------------- Evolutions (0) 0 Regions Visited (3) 600 Robots Destroyed (26) 130 Value Destroyed (624) 624 Prototype IDs (0) 0 Alien Tech Used (0) 0 Bonus (24) 24 TOTAL SCORE: 1378 Bonus ------- Follower Combat Kills 39 Friendly Fire -15 Cogmind --------- Core Integrity 0/250 Matter 214/300 Energy 250/250 System Corruption 0% Temperature Cool (0) Movement Treading (160) Location -10/Subcaves Parts ------- > --- POWER (1) -------- Ion Engine > --- PROPULSION (2) --- Light Treads Light Treads > --- UTILITY (2) ------ Scrap Shield > --- WEAPON (2) ------- Heavy Riot Gun Rocket Launcher > --- INVENTORY (5) ---- Large Storage Unit Beam Rifle Subdweller Laser Subdweller Machine Gun Scrap Shield Fragment (45) Peak State ------------ > --- POWER ------------ Ion Engine > --- PROPULSION ------- Light Treads Light Treads > --- UTILITY ---------- Large Storage Unit Compact Matter Pod > --- WEAPON ----------- Heavy Riot Gun Subdweller Laser > --- INVENTORY -------- Light Ion Engine Aluminum Leg Aluminum Leg Aluminum Leg Wheel Compact Wheel Large Matter Pod Subdweller Optics Makeshift Armor Plating Beam Rifle Particle Gun Subdweller Machine Gun Subdweller Machine Gun Rocket Launcher Mini Grenade Launcher [Rating: 15] Favorites ----------- Power Ion Engine Engine Ion Engine Propulsion Aluminum Leg Treads Light Treads Leg Aluminum Leg Utility Large Storage Unit Device Seismic Detector Storage Large Storage Unit Protection Scrap Shield Weapon Beam Rifle Energy Gun Beam Rifle Ballistic Gun Shotgun Launcher Rocket Launcher Build | -11 -10 -10 -10 ------- Run | Jun Mat Min Sub Slots Evolved . | . . . . Power . | . . . . Propulsion . | . . . . Utility . | . . . . Weapon . | . . . . Parts Attached 31 | 1 8 7 15 Power 3 | . 1 1 1 Engine 3 | . 1 1 1 Core . | . . . . Reactor . | . . . . Propulsion 8 | . 2 3 3 Treads 2 | . . . 2 Leg 6 | . 2 3 1 Wheel . | . . . . Hover . | . . . . Flight . | . . . . Utility 8 | 1 2 . 5 Device 3 | 1 1 . 1 Storage 4 | . 1 . 3 Processor . | . . . . Hackware . | . . . . Protection 1 | . . . 1 Artifact . | . . . . Weapon 12 | . 3 3 6 Energy Gun 7 | . 1 2 4 Energy Cannon . | . . . . Ballistic Gun 3 | . 2 . 1 Ballistic Cannon . | . . . . Launcher 2 | . . 1 1 Special Weapon . | . . . . Impact Weapon . | . . . . Slashing Weapon . | . . . . Piercing Weapon . | . . . . Special Melee Weapon . | . . . . Unidentified Prototypes . | . . . . Parts Lost 8 | . 1 2 5 Power 1 | . . . 1 Propulsion 2 | . . 1 1 Utility 1 | . . . 1 Weapon 4 | . 1 1 2 Highest Loss Streak 3 | . 1 2 3 To Critical Strikes . | . . . . Average Slot Usage (%) 97 | . 100 99 92 Engine 13 | . 14 14 12 Treads 6 | . . . 16 Leg 21 | . 28 27 11 Device 10 | . 14 14 6 Storage 13 | . 14 14 12 Protection 1 | . . . 3 Energy Gun 20 | . 4 20 26 Ballistic Gun 6 | . 23 5 1 Naked Turns . | . . . . Heaviest Build 36 | 15 32 33 36 Greatest Support 40 | 20 20 20 40 Greatest Overweight (x) 1 | . 1 1 1 Average Overweight (x) . | . . 1 . Largest Inventory Capacity 15 | 8 15 15 15 Average Capacity 13 | 8 14 15 12 Most Carried 15 | 7 15 15 15 Average Carried 12 | 6 10 14 11 Final Capacity 15 | 8 15 15 5 Final Carried 15 | 7 15 15 5 Class Distribution -------------------- 76% | Mutant 23% | Scavenger-Mutant Dominant Class ---------------- Mutant | -10/Materials Mutant | -10/Mines Mutant | -10/Subcaves Resources | -11 -10 -10 -10 ----------- Run | Jun Mat Min Sub Matter Collected 752 | 234 204 196 118 Remotely . | . . . . Salvage Created 701 | 80 251 114 256 Parts 50 | 3 16 15 16 Haulers Intercepted . | . . . . Recyclers Shooed 2 | . 1 1 . Parts Field Recycled . | . . . . Retrieved Matter . | . . . . Parts Self-Destructed . | . . . . Prevented . | . . . . Kills | -11 -10 -10 -10 ------- Run | Jun Mat Min Sub Combat Hostiles Destroyed 23 | . 9 8 6 Guns 16 | . 9 3 4 AOE 7 | . . 5 2 Classes Destroyed 5 | 2 2 . 1 Tunneler 2 | 1 . 1 . Recycler 1 | 1 . . . Swarmer 10 | . 3 7 . Grunt 7 | . 6 1 . Subdweller 6 | . . . 6 Best Kill Streak 4 | 1 3 4 2 Combat Bots Only 3 | . 3 3 2 Max Kills in Single Turn 3 | 1 2 3 2 Gunslinging . | . . . . Exploded 2 | . . 2 2 Melee . | . . . . Uniques/NPCs Destroyed . | . . . . Combat | -11 -10 -10 -10 -------- Run | Jun Mat Min Sub Damage Taken 1608 | . 358 483 767 Core 270 | . 39 65 166 Absorbed by Shields . | . . . . Core Remaining (%) 100 | 100 . . . Volleys Fired 80 | 8 24 20 28 Largest 2 | 2 2 2 2 Hottest 125 | 70 79 121 125 Shots Fired 140 | 16 46 29 49 Gun 128 | 16 46 23 43 Cannon . | . . . . Launcher 12 | . . 6 6 Special . | . . . . Kinetic 62 | 8 45 5 4 Thermal 55 | 8 1 18 28 Explosive 12 | . . 6 6 Electromagnetic 11 | . . . 11 Robot Hit Streak 23 | 5 6 5 23 Robot Miss Streak 7 | 1 7 4 4 Penetration Max . | . . . . Secondary Targets . | . . . . Shots Hit Robots 89 | 5 33 15 36 Core Hits 44 | 3 18 10 13 Critical Kills . | . . . . Critical Parts Destroyed . | . . . . Critical Strikes . | . . . . Melee Attacks . | . . . . Impact . | . . . . Slashing . | . . . . Piercing . | . . . . Sneak Attacks . | . . . . Combat Hostiles . | . . . . Follow-up Attacks . | . . . . Damage Inflicted 2065 | 61 464 650 890 Guns 1330 | 61 461 186 622 Cannons . | . . . . Explosions 695 | . . 427 268 Melee . | . . . . Ramming 40 | . 3 37 . Kinetic 591 | 36 446 54 55 Thermal 613 | 25 15 132 441 Explosive 649 | . . 427 222 Electromagnetic 172 | . . . 172 Impact . | . . . . Slashing . | . . . . Piercing . | . . . . Highest Corruption . | . . . . Average Corruption . | . . . . Corruption Purged . | . . . . Corruption Blocked . | . . . . Overload Shots . | . . . . Overflow Damage 79 | . . 79 . Projectiles . | . . . . Explosions 79 | . . 79 . Melee . | . . . . Knockbacks . | . . . . Impact . | . . . . Kinetic . | . . . . Secondary . | . . . . Self-Inflicted Damage 246 | . . 157 89 Shots 8 | . . 5 3 Rammed . | . . . . Targets Rammed 7 | . 1 6 . Kicked 7 | . 1 6 . Crushed . | . . . . Highest Temperature 134 | 27 18 134 12 Average Temperature 26 | 13 3 43 11 Received Heat Transfer 174 | . 165 9 . Siege Activations . | . . . . Robots Corrupted . | . . . . Combat Hostiles . | . . . . Parts Fried . | . . . . Impact Corruptions . | . . . . Robots Melted . | . . . . Combat Hostiles . | . . . . Parts Melted 3 | . . 3 . Heat Transferred 1079 | 74 37 333 635 Parts Sabotaged . | . . . . Parts Stolen . | . . . . Parts Stripped . | . . . . Power Chain Reactions 1 | . . . 1 Missiles Intercepted . | . . . . Alert | -11 -10 -10 -10 ------- Run | Jun Mat Min Sub Peak Influence 241 | 10 241 108 . Initial 37 | . 6 37 . Average 37 | 6 89 22 . Maximum Alert Level 1 | . 1 . . Low Security (%) 98 | 100 94 100 . Level 1 1 | . 5 . . Level 2 . | . . . . Level 3 . | . . . . Level 4 . | . . . . Level 5 . | . . . . High Security . | . . . . Max Security . | . . . . Squads Dispatched 1 | . 1 . . Investigation . | . . . . Extermination . | . . . . Reinforcement 1 | . 1 . . Assault . | . . . . Garrison . | . . . . Intercept . | . . . . Searches Triggered . | . . . . Construction Impeded . | . . . . Haulers Reinforced . | . . . . Active Scanning Responses . | . . . . Cargo Convoy Interrupts . | . . . . Stealth | -11 -10 -10 -10 --------- Run | Jun Mat Min Sub Distress Signals . | . . . . Communications Jammed . | . . . . Distress Signals . | . . . . Times Spotted 37 | . 18 11 8 Peak Tracking Total 5 | . 5 3 1 Tactical Retreats 2 | . 2 . . Traps | -11 -10 -10 -10 ------- Run | Jun Mat Min Sub Traps Triggered 1 | . . . 1 Indirectly . | . . . . Trap Hack Attempts . | . . . . Triggered . | . . . . Disarmed . | . . . . Reprogrammed . | . . . . Reused . | . . . . Traps Extracted . | . . . . Installed . | . . . . Triggered . | . . . . Machines | -11 -10 -10 -10 ---------- Run | Jun Mat Min Sub Machines Disabled . | . . . . Max in Single Turn . | . . . . Machines Repaired . | . . . . Machines Sabotaged . | . . . . Overloaded Fab Kills . | . . . . Hacking | -11 -10 -10 -10 --------- Run | Jun Mat Min Sub Machines Accessed 2 | . 2 . . Terminals 2 | . 2 . . Fabricators . | . . . . Repair Stations . | . . . . Recycling Units . | . . . . Scanalyzers . | . . . . Garrison Access . | . . . . Total Hacks 2 | . 2 . . Successful 2 | . 2 . . Failed . | . . . . Catastrophic . | . . . . Database Lockouts . | . . . . Manual 2 | . 2 . . Terminals 2 | . 2 . . Fabricators . | . . . . Repair Stations . | . . . . Recycling Units . | . . . . Scanalyzers . | . . . . Garrison Access . | . . . . Terminal Hacks . | . . . . Fabricator Hacks . | . . . . Repair Station Hacks . | . . . . Recycling Unit Hacks . | . . . . Scanalyzer . | . . . . Garrison Access Hacks . | . . . . Unauthorized Hacks 2 | . 2 . . Terminals 2 | . 2 . . Botnet 2 | . 2 . . Fabricators . | . . . . Repair Stations . | . . . . Recycling Units . | . . . . Scanalyzers . | . . . . Garrison Access . | . . . . Data Cores Recovered . | . . . . Used . | . . . . Hacking Detections 2 | . 2 . . Full Trace Events . | . . . . Feedback Events . | . . . . Feedback Blocked . | . . . . Robot Schematics Acquired . | . . . . Robots Built . | . . . . Authchips . | . . . . Time . | . . . . Total Robot Build Rating . | . . . . Part Schematics Acquired . | . . . . Parts Built . | . . . . Authchips . | . . . . Time . | . . . . Total Part Build Rating . | . . . . Parts Repaired . | . . . . Time . | . . . . Parts Recycled . | . . . . Recycled Matter . | . . . . Retrieved Matter . | . . . . Retrieved Components . | . . . . Parts Scanalyzed . | . . . . Part Schematics Acquired . | . . . . Parts Damaged . | . . . . Bothacking | -11 -10 -10 -10 ------------ Run | Jun Mat Min Sub Used RIF Installer . | . . . . Robots Hacked . | . . . . Non-combat . | . . . . Combat . | . . . . Robot Hacks Applied . | . . . . Relay Couplers Released . | . . . . Fabnet Peak Effective % . | . . . . Robots Rewired . | . . . . Allies Hacked . | . . . . Hacks Repelled . | . . . . Allies | -11 -10 -10 -10 -------- Run | Jun Mat Min Sub Total Allies 3 | . . 3 . Largest Group 3 | . . 3 . Highest-Rated Group 40 | . . 40 . Highest-Rated Ally 16 | . . 16 . Total Orders . | . . . . Ally Attacks 33 | . . 33 . Total Damage 254 | . . 254 . Kills 4 | . . 4 . Allies Corrupted . | . . . . Allies Melted . | . . . . Intel | -11 -10 -10 -10 ------- Run | Jun Mat Min Sub Robot Analysis Total . | . . . . Derelict Logs Recovered 3 | . . 2 1 Drone Launches . | . . . . Drone Recoveries . | . . . . Exploration | -11 -10 -10 -10 ------------- Run | Jun Mat Min Sub Turns Passed 4328 | 50 594 2002 1682 Spaces Moved 2128 | 20 266 999 843 Core . | . . . . Treads 539 | . . . 539 Legs 1589 | 20 266 999 304 Wheels . | . . . . Hover . | . . . . Flight . | . . . . Fastest Speed 120 | 120 120 190 160 Average Speed 180 | 120 183 190 170 Slowest Speed 190 | 120 190 190 190 Overloaded Moves . | . . . . Propulsion Burnouts . | . . . . Robots Hopped . | . . . . Cave-ins Triggered . | . . . . Exploration Rate (%) 51 | 2 62 99 44 Regions Visited 3 Branch Regions 2 Pre-discovered Areas 1 | . . 1 . Known Exits Taken . | . . . . Unknown Exits Taken 3 | 1 1 1 . Scrap Searched 7 | . . 2 5 Spaces Dug . | . . . . Terrain Destroyed 98 | . . 57 41 Melee . | . . . . Projectile . | . . . . AOE 98 | . . 57 41 Terrain Rammed . | . . . . Walls Destroyed . | . . . . Machines Disabled . | . . . . Actions | -11 -10 -10 -10 --------- Run | Jun Mat Min Sub Total 2469 | 29 326 1073 1041 Wait 173 | . 18 29 126 Move 2125 | 19 265 998 843 Hop . | . . . . Pick Up 20 | 1 6 6 7 Fast Attach 5 | 1 1 . 3 Attach 8 | . 1 2 5 Detach 1 | . . . 1 Swap 18 | . 6 5 7 Drop 28 | . 4 7 17 Fire 80 | 8 24 20 28 Melee . | . . . . Ram . | . . . . Kick 7 | . 1 6 . Crush . | . . . . Escape Stasis . | . . . . Rewire . | . . . . Trap . | . . . . Miscellaneous 4 | . . . 4 Route ------- -11/Junkyard -10/Materials (discovered 2 exits: [*Mat] / [*Min]) -10/Mines (discovered 3 exits: [*Mat x2] / [*Sub]) -10/Subcaves History --------- Turn | Location | Event 1 | -11/Junkyard | Discovered new exit (range 3) 51 | -11/Junkyard | Entered Materials 311 | -10/Materials | Build established: Mutant 515 | -10/Materials | Discovered new exit (range 12) 633 | -10/Materials | Discovered new exit (range 7) 645 | -10/Materials | Entered Mines 647 | -10/Mines | Learned Materials interactive machine intel 670 | -10/Mines | Assisted by bots powering up and referring to "LRC-V3" 790 | -10/Mines | Discovered new exit (range 4) 797 | -10/Mines | Received a Rocket Launcher from a helpful Derelict 956 | -10/Mines | Discovered new exit (range 13) 1309 | -10/Mines | Discovered new exit (range 14) 2408 | -10/Mines | Build established: Scavenger-Mutant 2647 | -10/Mines | Entered Subcaves 2675 | -10/Subcaves | Shifting Twisted Machinery released Sub. Laser 2715 | -10/Subcaves | Shifting Twisted Machinery released Sub. Machine Gun 3137 | -10/Subcaves | Disturbed a concealed Subdweller 3171 | -10/Subcaves | Lost 3 parts (1p1u1w) 3285 | -10/Subcaves | Core integrity fell below 50% 3433 | -10/Subcaves | Build established: Mutant 3655 | -10/Subcaves | Core integrity fell below 20% 4239 | -10/Subcaves | Learned 2 Materials zone layouts 4329 | -10/Subcaves | Destroyed by MQ-MGA(R) with Subdweller Machine Gun Last Messages --------------- 03848_ Dropped Lrg. Matter Pod. 03852_ Acquired Scrap Shield. 03856_ Extracted 10 matter. 03976_ Scrap Shield Fragment affixed to Scrap Shield (+50). 03979_ Scrap Shield Fragment affixed to Scrap Shield (+26). 04085_ Dropped Mak. Armor Plating. 04088_ Acquired Lrg. Storage Unit. 04212_ Dropped Hvy. Riot Gun. 04214_ Dropped Mni. Grenade Launcher. 04214_ Acquired Scrap Shield Fragment. 04217_ Acquired Hvy. Riot Gun. 04239_ Acquired derelict log, extracted data. Data stored: Materials zone layouts (x2). 04277_ AJ-1A7(R): "ARGHSUB!" 04278_ AJ-1A7(R) destroyed. 04278_ N1-9NR(R) destroyed. 04281_ The unstable cave ceiling collapses. 04284_ Scrap Shield Fragment affixed to Scrap Shield (+41). 04286_ Scrap Shield Fragment affixed to Scrap Shield (+9). 04297_ The unstable cave ceiling collapses. Map ----- +----------------------------------------------------+ | | | ?????????????????????????????????????????????????? | | ?????????????????????????????????????????????????? | | ?????????????????????????????????????????????????? | | ?????????????????????????????????????????????????? | | ?????????????????????????????????????????????????? | | ?????????????????????????????????????????????????? | | ?????????????????????????????????????????????????? | | ?????????????????????????????????????????????????? | | ?????????????????????????????????????????????????? | | ?????????????????????????????????????????????????? | | ?????????????????????????????????????????????????? | | ?????????????????????????????????????????????????? | | ?????????????????????????????????????????????????? | | ?????????????????????????????????????????????????? | | ????????????########?###?????????????????????????? | | ???????###### # ### #####?????????????????????? | | ???????# ## ### #?????????????????????? | | ????????# #?????????????????????? | | ??##????## # ##?????????????????????? | | ??# ###?## ## #??????????????????????? | | ??# ### #### ### ##?????????????????????? | | ### ## #####?# #?????????????????????? | | # # # ![[ #???## ##????????????????????? | | # #*%! #???# #????????????????????? | | ## #???# @ #????????????????????? | | # # # ##???## ???????????????? | | ##### #?????## R ??????????? | | #??# #?????## ?????????? | | #??# #???????### ?????????? | | ##?# ##??????????# ??????????? | | ???#### ##????????????# # ??????????? | | ??????## #??????????????### ##???????????? | | ???????# #??????????????????##????????????? | | ???????# #????????????????????????????????? | | ??????? #????????????????????????????????? | | ??????? ???????????????????????????????? | | ?????? ???????????????????????????????? | | ?????? ??????????????????????????????? | | ?????? ??????????????????????????????? | | ?????? ????????????????????????????????? | | ?????? ???????????????????????????????????? | | ???????## ?????????????????????????????????????? | | ?????????????????????????????????????????????????? | | ?????????????????????????????????????????????????? | | ?????????????????????????????????????????????????? | | ?????????????????????????????????????????????????? | | ?????????????????????????????????????????????????? | | ?????????????????????????????????????????????????? | | ?????????????????????????????????????????????????? | +----------------------------------------------------+ Best States ------------- Heat Dissipation 25 Energy Generation 10 Energy Capacity 250 Matter Stores 450 Matter Capacity 450 Sight Range 21 Terrain Scan Density 10 Armor Coverage 800 Evasion (%) 55 Recoil Reduction 2 Item Schematics ----------------- None Robot Schematics ------------------ None Fabricated ------------ Nothing Alien Tech Used ----------------- None Achievements -------------- None Challenges ------------ None Game ------ Seed MetafieldMasterSubcomponent Manual? 0 Play Time 00:26:40 Cumulative 46.5 hours Start 2023.08.01 @ 15:31:43 End 2023.08.01 @ 16:06:45 Sessions 1 Manual Loads 0 Difficulty Rogue Special Mode None Game No. 30 Rogue 30 Adventurer 0 Explorer 0 Win Type - Total 1 Types 1/0/0/0/0/0/0/0/0 Lore% 25 Gallery% 45 Achievement% 30 Wizard Run 0 Options --------- ASCII 0 Keyboard 1 Movement Numpad Keybinds 0 Fullscreen 1 Font 24/Smallcaps Map View 76x50 Tactical HUD 1 Map Filters NONE Filters NONE Steam 1 RUN: 17ffd76d-ecbc-4384-8538-e9614ad46b3a